Cogmind - Beta 14 @@@ ROGUE MODE // 2025.03.02 @ 09:40:52 Player: NeoBioHazard Result: Destroyed by G-47 Trooper with Particle Gun Performance ------------- Evolutions (2) 1000 Regions Visited (3) 600 Robots Destroyed (25) 125 Value Destroyed (521) 521 Prototype IDs (1) 20 Alien Tech Used (0) 0 Bonus (0) 0 TOTAL SCORE: 2266 Bonus ------- None Cogmind --------- Core Integrity 0/550 Matter 300/300 Energy 99/100 System Corruption 0% Temperature Cool (9) Movement Core (50) Location -8/Materials Parts ------- > --- POWER (1) -------- (None) > --- PROPULSION (4) --- (None) > --- UTILITY (4) ------ Signal Interpreter Hacking Suite System Shield > --- WEAPON (2) ------- (None) > --- INVENTORY (5) ---- Visual Processing Unit Improved Terrain Scan Processor EM Pulse Gun Shotgun Mace Peak State ------------ > --- POWER ------------ (None) > --- PROPULSION ------- Advanced Treads Flight Unit Flight Unit Improved Flight Unit > --- UTILITY ---------- Structural Scanner Signal Interpreter Hacking Suite System Shield > --- WEAPON ----------- Hammer > --- INVENTORY -------- Visual Processing Unit Improved Terrain Scan Processor EM Pulse Gun Shotgun Mace [Rating: 18] Favorites ----------- Power Ion Engine Engine Ion Engine Propulsion Light Treads Treads Light Treads Flight Unit Flight Unit Utility Small Storage Unit Device Heat Sink Storage Small Storage Unit Processor Signal Interpreter Hackware System Shield Protection Light Armor Plating Weapon Assault Rifle Ballistic Gun Assault Rifle Impact Weapon Hammer Build | -11 -10 -9 -8 ------- Run | Yrd Mat Mat Mat Slots Evolved 4 | . . 2 2 Power . | . . . . Propulsion 2 | . . . 2 Utility 2 | . . 2 . Weapon . | . . . . Parts Attached 32 | 7 6 16 3 Power 6 | 1 2 3 . Engine 6 | 1 2 3 . Core . | . . . . Reactor . | . . . . Propulsion 10 | 2 . 6 2 Treads 3 | 2 . . 1 Leg . | . . . . Wheel . | . . . . Hover . | . . . . Flight 7 | . . 6 1 Utility 9 | 1 2 5 1 Device 4 | . 2 2 . Storage 1 | 1 . . . Processor 1 | . . 1 . Hackware 2 | . . 1 1 Protection 1 | . . 1 . Artifact . | . . . . Weapon 7 | 3 2 2 . Energy Gun . | . . . . Energy Cannon . | . . . . Ballistic Gun 6 | 3 2 1 . Ballistic Cannon . | . . . . Launcher . | . . . . Special Weapon . | . . . . Impact Weapon 1 | . . 1 . Slashing Weapon . | . . . . Piercing Weapon . | . . . . Special Melee Weapon . | . . . . Unidentified Prototypes 1 | . . . 1 Parts Lost 17 | . 3 7 7 Power 3 | . 1 2 . Propulsion 7 | . . 3 4 Utility 4 | . . 2 2 Weapon 3 | . 2 . 1 Highest Loss Streak 4 | . 2 3 4 To Critical Strikes . | . . . . Average Slot Usage (%) 76 | . 89 70 54 Engine 8 | . 13 8 . Treads 16 | . 28 5 2 Flight 7 | . . 15 12 Device 8 | . 7 11 7 Storage 7 | . 14 3 . Processor 4 | . . 9 9 Hackware 3 | . . . 15 Ballistic Gun 14 | . 25 5 . Impact Weapon 3 | . . 7 7 Peak Build Rating 18 | 6 7 9 18 Average Rating 7 | 4 6 6 11 On Entrance 5 | . 6 6 9 Naked Turns . | . . . . Heaviest Build 15 | 11 14 15 4 Greatest Support 40 | 40 40 40 13 Greatest Overweight (x) 3 | . . 3 . Average Overweight (x) . | . . . . Largest Inventory Capacity 8 | 8 8 8 5 Average Capacity 6 | 6 8 5 5 Most Carried 8 | 2 8 8 5 Average Carried 4 | 1 4 5 4 Final Capacity 8 | 8 8 5 5 Final Carried 8 | 2 8 3 5 Class Distribution -------------------- 60% | Mutant 13% | Hacker-Mutant 11% | Scavenger-Mutant 9% | Scout 4% | Scavenger-Scout Dominant Class ---------------- Mutant | -10/Materials Scavenger-Mutant | -9/Materials Hacker-Mutant | -8/Materials Resources | -11 -10 -9 -8 ----------- Run | Yrd Mat Mat Mat Matter Collected 692 | 195 295 179 23 Remotely . | . . . . Salvage Created 583 | . 318 265 . Parts 38 | . 20 18 . Haulers Intercepted . | . . . . Recyclers Shooed . | . . . . Parts Field Recycled . | . . . . Retrieved Matter . | . . . . Parts Self-Destructed . | . . . . Prevented . | . . . . Kills | -11 -10 -9 -8 ------- Run | Yrd Mat Mat Mat Combat Hostiles Destroyed 22 | . 9 12 1 Melee 4 | . . 4 . Guns 15 | . 9 6 . AOE 1 | . . . 1 Classes Destroyed 3 | . 2 1 . Watcher 3 | . . 3 . Swarmer 12 | . 2 9 1 Grunt 10 | . 7 3 . Best Kill Streak 5 | . 3 5 1 Combat Bots Only 4 | . 3 4 1 Max Kills in Single Turn 2 | . 2 2 1 Gunslinging 1 | . 1 1 . Exploded 1 | . . . 1 Melee 1 | . . 1 . Uniques/NPCs Destroyed . | . . . . Combat | -11 -10 -9 -8 -------- Run | Yrd Mat Mat Mat Hostile Shots Fired 304 | . 73 117 114 Missed 111 | . 19 48 44 Damage Taken 2310 | . 677 692 941 Core 934 | . 161 213 560 Absorbed by Shields . | . . . . Core Remaining (%) 60 | 100 35 46 . Volleys Fired 64 | . 46 18 . Largest 2 | . 2 2 . Hottest 43 | . 40 43 . Shots Fired 108 | . 78 30 . Gun 108 | . 78 30 . Cannon . | . . . . Launcher . | . . . . Special . | . . . . Kinetic 108 | . 78 30 . Thermal . | . . . . Explosive . | . . . . Electromagnetic . | . . . . Robot Hit Streak 12 | . 9 12 . Robot Miss Streak 4 | . 2 4 . Penetration Max . | . . . . Secondary Targets 2 | . 1 1 . Max Gunslinging Chain 1 | . 1 1 . Shots Hit Robots 106 | . 54 37 15 Core Hits 29 | . 17 12 . Critical Kills . | . . . . Critical Parts Destroyed 4 | . . 3 1 Critical Strikes 4 | . . 3 1 Smash 4 | . . 3 1 Melee Attacks 52 | . . 29 23 Impact 52 | . . 29 23 Slashing . | . . . . Piercing . | . . . . Sneak Attacks 2 | . . 2 . Combat Hostiles 1 | . . 1 . Follow-up Attacks . | . . . . Damage Inflicted 1796 | . 585 815 396 Guns 828 | . 585 243 . Cannons . | . . . . Explosions . | . . . . Melee 950 | . . 572 378 Ramming 18 | . . . 18 Kinetic 828 | . 585 243 . Thermal . | . . . . Explosive . | . . . . Electromagnetic . | . . . . Impact 950 | . . 572 378 Slashing . | . . . . Piercing . | . . . . Highest Corruption . | . . . . Average Corruption . | . . . . Corruption Purged . | . . . . Corruption Blocked . | . . . . Overload Shots . | . . . . Overflow Damage 171 | . . 142 29 Projectiles . | . . . . Explosions . | . . . . Melee 171 | . . 142 29 Knockbacks 3 | . . 2 1 Impact 3 | . . 2 1 Kinetic . | . . . . Secondary . | . . . . Self-Inflicted Damage 7 | . . . 7 Shots . | . . . . Rammed 4 | . . . 4 Targets Rammed 4 | . . . 4 Kicked . | . . . . Crushed . | . . . . Highest Temperature 12 | . 12 . 5 Average Temperature 4 | . 4 . 5 Received Heat Transfer 852 | . 369 150 333 Siege Activations . | . . . . Robots Corrupted 3 | . . 3 . Combat Hostiles 2 | . . 2 . Parts Fried 5 | . . 4 1 Impact Corruptions 14 | . . 12 2 Robots Melted . | . . . . Combat Hostiles . | . . . . Parts Melted . | . . . . Heat Transferred . | . . . . Parts Sabotaged . | . . . . Parts Stolen . | . . . . Parts Stripped . | . . . . Power Chain Reactions . | . . . . Alert | -11 -10 -9 -8 ------- Run | Yrd Mat Mat Mat Peak Influence 472 | . 165 472 313 Initial 198 | . . 16 198 Average 142 | . 50 245 240 Maximum Alert Level 2 | . . 2 1 Low Security (%) 67 | 100 100 42 22 Level 1 28 | . . 43 77 Level 2 3 | . . 13 . Level 3 . | . . . . Level 4 . | . . . . Level 5 . | . . . . High Security . | . . . . Max Security . | . . . . Squads Dispatched 3 | . 2 1 . Investigation 1 | . 1 . . Extermination . | . . . . Reinforcement 2 | . 1 1 . Assault . | . . . . Garrison . | . . . . Intercept . | . . . . Searches Triggered . | . . . . Construction Impeded . | . . . . Haulers Reinforced . | . . . . Active Scanning Responses . | . . . . Cargo Convoy Interrupts . | . . . . Stealth | -11 -10 -9 -8 --------- Run | Yrd Mat Mat Mat Distress Signals 7 | . 1 6 . Communications Jammed . | . . . . Distress Signals . | . . . . Times Spotted 70 | . 14 35 21 Peak Tracking Total 10 | . 4 9 10 Tactical Retreats 7 | . . 4 3 Traps | -11 -10 -9 -8 ------- Run | Yrd Mat Mat Mat Traps Triggered . | . . . . Indirectly . | . . . . Trap Hack Attempts . | . . . . Triggered . | . . . . Disarmed . | . . . . Reprogrammed . | . . . . Reused . | . . . . Traps Extracted . | . . . . Installed . | . . . . Triggered . | . . . . Machines | -11 -10 -9 -8 ---------- Run | Yrd Mat Mat Mat Machines Disabled . | . . . . Max in Single Turn . | . . . . Machines Repaired . | . . . . Machines Dismantled . | . . . . Machines Sabotaged . | . . . . Overloaded Fab Kills . | . . . . Hacking | -11 -10 -9 -8 --------- Run | Yrd Mat Mat Mat Machines Accessed 7 | . 4 3 . Terminals 7 | . 4 3 . Fabricators . | . . . . Repair Stations . | . . . . Recycling Units . | . . . . Scanalyzers . | . . . . Garrison Access . | . . . . Total Hacks 12 | . 8 4 . Successful 1 | . . 1 . Failed 11 | . 8 3 . Catastrophic 8 | . 6 2 . Database Lockouts . | . . . . Manual 12 | . 8 4 . Terminals 12 | . 8 4 . Fabricators . | . . . . Repair Stations . | . . . . Recycling Units . | . . . . Scanalyzers . | . . . . Garrison Access . | . . . . Terminal Hacks 1 | . . 1 . Level Access Points 1 | . . 1 . Fabricator Hacks . | . . . . Repair Station Hacks . | . . . . Recycling Unit Hacks . | . . . . Scanalyzer . | . . . . Garrison Access Hacks . | . . . . Unauthorized Hacks . | . . . . Terminals . | . . . . Fabricators . | . . . . Repair Stations . | . . . . Recycling Units . | . . . . Scanalyzers . | . . . . Garrison Access . | . . . . Data Cores Recovered . | . . . . Used . | . . . . Hacking Detections 6 | . 4 2 . Full Trace Events 3 | . 3 . . Feedback Events . | . . . . Feedback Blocked . | . . . . Robot Schematics Acquired . | . . . . Robots Built . | . . . . Authchips . | . . . . Time . | . . . . Total Robot Build Rating . | . . . . Part Schematics Acquired . | . . . . Parts Built . | . . . . Authchips . | . . . . Time . | . . . . Total Part Build Rating . | . . . . Parts Repaired . | . . . . Time . | . . . . Parts Recycled . | . . . . Recycled Matter . | . . . . Retrieved Matter . | . . . . Retrieved Components . | . . . . Parts Scanalyzed . | . . . . Part Schematics Acquired . | . . . . Parts Damaged . | . . . . Bothacking | -11 -10 -9 -8 ------------ Run | Yrd Mat Mat Mat Used RIF Installer . | . . . . Robots Hacked . | . . . . Non-combat . | . . . . Combat . | . . . . Robot Hacks Applied . | . . . . Relay Couplers Released . | . . . . Fabnet Peak Effective % . | . . . . Robots Rewired . | . . . . Allies Hacked . | . . . . Hacks Repelled . | . . . . Allies | -11 -10 -9 -8 -------- Run | Yrd Mat Mat Mat Total Allies . | . . . . Largest Group . | . . . . Highest-Rated Group . | . . . . Highest-Rated Ally . | . . . . Total Orders . | . . . . Ally Attacks . | . . . . Total Damage . | . . . . Kills . | . . . . Allies Corrupted . | . . . . Allies Melted . | . . . . Intel | -11 -10 -9 -8 ------- Run | Yrd Mat Mat Mat Robot Analysis Total . | . . . . Derelict Logs Recovered . | . . . . Drone Launches . | . . . . Drone Recoveries . | . . . . Exploration | -11 -10 -9 -8 ------------- Run | Yrd Mat Mat Mat Turns Passed 1329 | 57 623 369 280 Spaces Moved 1168 | 33 297 413 425 Core 204 | 6 . . 198 Treads 357 | 27 297 33 . Legs . | . . . . Wheels . | . . . . Hover . | . . . . Flight 607 | . . 380 227 Fastest Speed 34 | 50 160 37 34 Average Speed 78 | 140 160 48 46 Slowest Speed 280 | 160 160 280 60 Overloaded Moves . | . . . . Propulsion Burnouts . | . . . . Robots Hopped 9 | . . 4 5 Cave-ins Triggered . | . . . . Exploration Rate (%) 41 | 4 55 62 44 Regions Visited 3 Branch Regions . Pre-discovered Areas . | . . . . Known Exits Taken 1 | . . 1 . Unknown Exits Taken 2 | 1 1 . . Scrap Searched . | . . . . Spaces Dug 1 | . . 1 . Terrain Destroyed 1 | . . 1 . Melee 1 | . . 1 . Projectile . | . . . . AOE . | . . . . Terrain Rammed . | . . . . Walls Destroyed . | . . . . Machines Disabled . | . . . . Actions | -11 -10 -9 -8 --------- Run | Yrd Mat Mat Mat Total 1372 | 40 372 500 460 Wait 32 | . 16 8 8 Move 1149 | 32 296 404 417 Hop 7 | . . 4 3 Pick Up 14 | 1 6 5 2 Fast Attach 21 | 6 2 10 3 Attach 3 | . 1 2 . Detach 1 | . . 1 . Swap 8 | 1 3 4 . Drop 17 | . 2 15 . Fire 64 | . 46 18 . Melee 52 | . . 29 23 Ram 4 | . . . 4 Kick . | . . . . Crush . | . . . . Escape Stasis . | . . . . Rewire . | . . . . Trap . | . . . . Miscellaneous . | . . . . Route ------- -11/Scrapyard -10/Materials (discovered 2 exits: *Mat / [*Min]) -9/Materials (discovered 4 exits: *Mat x3 / *Min) -8/Materials History --------- Turn | Location | Event 12 | -11/Scrapyard | Discovered new exit (range 15) 58 | -11/Scrapyard | Entered Materials 323 | -10/Materials | Core integrity fell below 50% 334 | -10/Materials | Build established: Mutant 371 | -10/Materials | Discovered new exit (range 16) 641 | -10/Materials | Discovered new exit (range 16) 681 | -10/Materials | Entered another Materials area 681 | -9/Materials | Evolved 2 slots: Utility x2 940 | -9/Materials | Discovered new exit (range 16) 1001 | -9/Materials | Identified exit to Mines 1037 | -9/Materials | Lost 3 parts (1p2n) 1040 | -9/Materials | Identified exit to Materials 1047 | -9/Materials | Core integrity fell below 50% 1050 | -9/Materials | Entered another Materials area 1050 | -8/Materials | Evolved 2 slots: Propulsion x2 1223 | -8/Materials | Lost 4 parts (4n) 1250 | -8/Materials | Core integrity fell below 50% 1294 | -8/Materials | Core integrity fell below 20% 1330 | -8/Materials | Destroyed by G-47 Trooper with Particle Gun Last Messages --------------- 01217_ R-06 Scavenger collects Autogun. 01218_ K-01 Serf collects debris. 01221_ R-06 Scavenger collects Flight Unit. 01222_ K-01 Serf collects debris. 01233_ Material Processor disabled. 01237_ Structural Scanner destroyed. 01240_ Critical hit (Burn: +37). 01253_ Slammed into Y-45 Defender. 01265_ K-01 Serf collects debris. 01268_ Acquired 23 matter. 01268_ K-01 Serf collects debris. 01274_ Hammer destroyed. 01276_ K-01 Serf collects debris. 01277_ Slammed into K-01 Serf. 01277_ Signal Interpreter broken. 01277_ Destabilizing: Short circuit. 01283_ Slammed into W-25 Informer. 01327_ Slammed into G-47 Trooper. 01329_ G-47 Trooper suffers critical hit (Burn). 01330_ K-01 Serf collects debris. Map ----- +----------------------------------------------------+ | ###+####### ? ??????????????????????????????? | | # ###### ? """"???????????????????????????????? | | # """"???????????????????????????????? | | T # """"???????????????????????????????? | | # ### # """"???????????????????????????????? | | ######## # """""??????????????????????????????? | | ! ]##### + """""??????????????????????????????? | | ##### # """""##????????????????????????????? | | + + ##????????????????????????????? | | "" #####+############????????????????????????????? | | "" # ########??? !??????????????????????? | | "" # """ ##????????? ??????????????????????? | | # """"" ##????????# #?????????????????????? | | "" # """"" ##????????# ?????????????????????? | | "" # """" ##????????# ????????????H????????? | | "" # """ ##????????# ?????????????????????? | | # ##????????# a#?????????????????????? | | """" ###???????# #?????????????????????? | | """"""##########???????# g #?????????????????????? | | " ##???????+ k#?????????????????????? | | " """ ##???????# #?????????????????????? | | " """ ##???????# #?????????????????????? | | " "" ##???????# #?????????????????????? | | " ##???????# #?????????????????????? | | *% " """ ##???????# #?????????????????????? | | [ " """ ##???????# @ #?????????????????????? | | %"""## """ ##???????# #?????????????????????? | | ##### ##???????# #?????????????????????? | | ########+############## g #?????????????????????? | | T % ############ %##????????????????????? | | Y ########?????????????? | | g #?????????????? | | TY #?????????????? | | # ########### #?????????????? | | # """ ############ g#### #?????????????? | | # """"" ###????????###+####?# #?????????????? | | # """"" ##?????????? ?# #?????????????? | | # """"" ##????????# ?# #?????????????? | | # """ # ????????# ## #?????????????? | | # # ????????# """ ## #?????????????? | | # ]# ????????# """ ## #?????????????? | | # * # ????????# """ ## ########??????? | | # / ????????# """ ## # #??????? | | # # ????????# ? ## # """#??????? | | + #### # ????????# ??? ## + """#??????? | | # #### # ????????####???#+## # """#??????? | | # #### ##?????????####### # % #??????? | | # #### # ?????????# # #??????? | | ??## # ?????#####+####### ########??????? | | ?????## # ?????# #?# #???????????? | +----------------------------------------------------+ Best States ------------- Heat Dissipation 38 Energy Generation 10 Energy Capacity 250 Matter Stores 300 Matter Capacity 300 Sight Range 16 Robot Scan Range 14 Terrain Scan Density 10 Armor Coverage 150 Evasion (%) 63 Recoil Reduction 2 Offensive Hacking 10 Defensive Hacking 10 Item Schematics ----------------- None Robot Schematics ------------------ None Fabricated ------------ Nothing Alien Tech Used ----------------- None Achievements -------------- None Challenges ------------ None Game ------ Seed SuperquantumMiningLance Manual? 0 Play Time 00:18:39 Cumulative 113.1 hours Start 2025.03.02 @ 09:25:31 End 2025.03.02 @ 09:40:52 Sessions 1 Manual Loads 0 Difficulty Rogue Special Mode None Game No. 227 Rogue 159 Adventurer 15 Explorer 53 Win Type - Total 2 Types 2/0/0/0/0/0/0/0/0 Lore% 25 Gallery% 57 Achievement% 46 Wizard Run 0 Options --------- Layout 0 ASCII 0 Keyboard 0 Movement Numpad Keybinds 0 Fullscreen 1 Font 18/SmallcapsGlow Map View 76x50 Zoom Use 0% Tactical HUD 1 Map Filters NONE Filters NONE Steam 1 RUN: e885a2a5-fede-4149-b1c9-ba8fa52ab947